fUST/lending_fUST_20250116
["ID","MTS","AMOUNT","RATE_DAILY","PERIOD"]
[349165795,1737001849911,-500.0,0.00019589,3]
[349165796,1737001849920,-1198.05,0.00019589,3]
[349165797,1737001849930,-500.0,0.00019589,3]
[349165798,1737001849953,-500.0,0.00019589,3]
[349165799,1737001849970,-919.52,0.00019589,3]
[349165800,1737001849985,-1537.57,0.00019589,3]
[349165801,1737001850003,-500.0,0.00019589,3]
[349165802,1737001850022,-500.0,0.00019589,3]
[349165803,1737001850041,-808.29,0.00019589,3]
[349165804,1737001850058,-500.0,0.00019589,3]
[349165805,1737001850073,-500.0,0.00019589,3]
[349165806,1737001850089,-1435.89,0.00019589,3]
[349165807,1737001850104,-500.0,0.00019589,3]
[349165808,1737001850117,-500.0,0.00019589,3]
[349165809,1737001850131,-500.0,0.00019589,3]
[349165810,1737001850146,-787.89,0.00019589,3]
[349165812,1737001850162,-667.18,0.00019589,3]
[349165813,1737001850179,-306.84615168,0.00019589,3]
[349165814,1737001850195,-632.25,0.00019589,3]
[349165815,1737001850206,-500.0,0.00019589,3]
[349165816,1737001850221,-151.0,0.00019589,2]
[349165817,1737001850238,-151.0,0.00019589,2]
[349165818,1737001850250,-151.0,0.00019589,2]
[349165819,1737001850265,-290.646976,0.00019589,2]
[349165820,1737001850277,-500.0,0.00019589,3]
[349165821,1737001850290,-500.0,0.00019589,3]
[349165822,1737001850304,-567.06,0.00019589,3]
[349165823,1737001850318,-500.0,0.00019589,3]
[349165824,1737001850332,-766.32,0.00019589,3]
[349165825,1737001850345,-500.0,0.00019589,3]
[349165826,1737001850359,-555.3,0.00019589,3]
[349165827,1737001850373,-339.997652,0.00019589,2]
[349165828,1737001850386,-339.997652,0.00019589,2]
[349165829,1737001850398,-339.997652,0.00019589,2]
[349165830,1737001850412,-562.37,0.00019589,3]
[349165831,1737001850425,-500.0,0.00019589,3]
[349165832,1737001850437,-339.997652,0.00019589,2]
[349165833,1737001850450,-339.997652,0.00019589,2]
[349165834,1737001850463,-339.99765,0.00019589,2]
[349165835,1737001850476,-810.03,0.00019589,3]
[349165836,1737001850489,-984.74,0.00019589,3]
[349165837,1737001850502,-500.0,0.00019589,3]
[349165838,1737001850515,-1676.86,0.00019589,3]
[349165839,1737001850528,-500.0,0.00019589,3]
[349165840,1737001850541,-500.0,0.00019589,3]
[349165841,1737001850554,-517.0,0.00019589,3]
[349165842,1737001850569,-500.0,0.00019589,3]
[349165843,1737001850582,-151.0,0.00019589,2]
[349165844,1737001850595,-151.0,0.00019589,2]
[349165845,1737001850608,-500.0,0.00019589,3]
[349165846,1737001850621,-649.0,0.00019589,3]
[349165847,1737001850634,-434.30694651,0.00019589,3]
[349165848,1737001850648,-745.32,0.00019589,3]
[349165849,1737001850661,-500.0,0.00019589,3]
[349165850,1737001850673,-1421.18,0.00019589,3]
[349165851,1737001850686,-918.6,0.00019589,3]
[349165852,1737001850699,-624.49,0.00019589,3]
[349165853,1737001850712,-500.0,0.00019589,3]
[349165854,1737001850725,-500.0,0.00019589,3]
[349165855,1737001850738,-263.894382,0.00019589,2]
[349165856,1737001850751,-263.894382,0.00019589,2]
[349165857,1737001850764,-263.894382,0.00019589,2]
[349165858,1737001850777,-511.234499,0.00019589,2]
[349165859,1737001850790,-511.234499,0.00019589,2]
[349165860,1737001850803,-511.234499,0.00019589,2]
[349165861,1737001850816,-520.23,0.00019589,3]
[349165862,1737001850829,-263.894382,0.00019589,2]
[349165863,1737001850841,-511.234499,0.00019589,2]
[349165864,1737001850854,-263.894382,0.00019589,2]
[349165865,1737001850867,-263.894388,0.00019589,2]
[349165866,1737001850879,-511.234499,0.00019589,2]
[349165867,1737001850893,-500.0,0.00019589,3]
[349165868,1737001850907,-511.234505,0.00019589,2]
[349165869,1737001850921,-527.17,0.00019589,3]
[349165870,1737001850931,-500.0,0.00019589,3]
[349165871,1737001850941,-500.0,0.00019589,3]
[349165872,1737001851124,-500.0,0.00019589,3]
[349165873,1737001851181,-500.0,0.00019589,3]
[349165874,1737001851191,-212.148039,0.00019589,2]
[349165875,1737001851201,-500.0,0.00019589,3]
[349165876,1737001851211,-594.540266,0.00019589,2]
[349165877,1737001851221,-594.540266,0.00019589,2]
[349165878,1737001851230,-594.540266,0.00019589,2]
[349165879,1737001851240,-594.540259,0.00019589,2]
[349165880,1737001851249,-500.0,0.00019589,3]
[349165881,1737001851259,-500.0,0.00019589,3]
[349165882,1737001851268,-836.16,0.00019589,3]
[349165883,1737001851278,-500.0,0.00019589,3]
[349165884,1737001851287,-500.0,0.00019589,3]
[349165885,1737001851297,-500.0,0.00019589,3]
[349165886,1737001851306,-500.0,0.00019589,3]
[349165887,1737001851315,-500.0,0.00019589,3]
[349165888,1737001851325,-500.0,0.00019589,3]
[349165889,1737001851334,-5786.45,0.00019589,3]
[349165890,1737001851343,-500.0,0.00019589,3]
[349165891,1737001851352,-1438.8,0.00019589,2]
[349165892,1737001851364,-2433.3,0.00019589,3]
[349165893,1737001851374,-500.0,0.00019589,3]
[349165894,1737001851383,-500.0,0.00019589,3]
[349165895,1737001851392,-1252.63,0.00019589,3]
[349165896,1737001851402,-500.0,0.00019589,3]
[349165897,1737001851411,-500.0,0.00019589,3]
[349165898,1737001851420,-500.0,0.00019589,3]
[349165899,1737001851429,-500.0,0.00019589,3]
[349165900,1737001851438,-544.82,0.00019589,3]
[349165901,1737001851448,-593.24,0.00019589,3]
[349165902,1737001851457,-35155.74,0.00019589,3]
[349165903,1737001851467,-500.0,0.00019589,3]
[349165904,1737001851477,-500.0,0.00019589,3]
[349165905,1737001851487,-500.0,0.00019589,3]
[349165906,1737001851496,-500.0,0.00019589,3]
[349165907,1737001851505,-1886.71,0.00019589,3]
[349165908,1737001851514,-500.0,0.00019589,3]
[349165909,1737001851524,-11268.26,0.00019589,3]
[349165910,1737001851533,-500.0,0.00019589,3]
[349165911,1737001851542,-635.76,0.00019589,3]
[349165912,1737001851552,-267.273412,0.00019589,2]
[349165913,1737001851561,-659.618751,0.00019589,2]
[349165914,1737001851571,-659.618751,0.00019589,2]
[349165915,1737001851580,-659.618751,0.00019589,2]
[349165916,1737001851589,-659.618751,0.00019589,2]
[349165917,1737001851598,-659.618751,0.00019589,2]
[349165918,1737001851609,-659.618753,0.00019589,2]
[349165919,1737001851618,-500.0,0.00019589,3]
[349165920,1737001851627,-1022.52,0.00019589,3]
[349165921,1737001851637,-4060.76,0.00019589,3]
[349165922,1737001851646,-1351.46,0.00019589,3]
[349165923,1737001851655,-4785.32,0.00019589,3]
[349165924,1737001851665,-2473.45,0.00019589,3]
[349165925,1737001851673,-715.82,0.00019589,3]
[349165926,1737001851683,-500.0,0.00019589,3]
[349165927,1737001851691,-607.13,0.00019589,3]
[349165928,1737001851700,-500.0,0.00019589,3]
[349165929,1737001851709,-12523.28,0.00019589,3]
[349165930,1737001851718,-521.04260892,0.00019589,3]
[349165931,1737001851728,-1984.62,0.00019589,3]
[349165932,1737001851737,-963.62,0.00019589,3]
[349165933,1737001851746,-151.0,0.00019589,2]
[349165934,1737001851755,-151.0,0.00019589,2]
[349165935,1737001851765,-151.0,0.00019589,2]
[349165936,1737001851775,-151.0,0.00019589,2]
[349165937,1737001851784,-151.0,0.00019589,2]
[349165938,1737001851794,-892.15,0.00019589,3]
[349165939,1737001851803,-500.0,0.00019589,3]
[349165940,1737001851812,-500.0,0.00019589,3]
[349165941,1737001851821,-500.0,0.00019589,3]
[349165942,1737001851831,-500.0,0.00019589,3]
[349165943,1737001851840,-647.9,0.00019589,3]
[349165944,1737001851850,-500.0,0.00019589,3]
[349165945,1737001851860,-3506.68,0.00019589,3]
[349165946,1737001851869,-818.98,0.00019589,3]
[349165947,1737001851879,-500.0,0.00019589,3]
[349165948,1737001851888,-500.0,0.00019589,3]
[349165949,1737001851897,-500.0,0.00019589,3]
[349165950,1737001851907,-500.0,0.00019589,3]
[349165951,1737001851916,-500.0,0.00019589,3]
[349165952,1737001851926,-857.27,0.00019589,3]
[349165953,1737001851935,-1327.41,0.00019589,3]
[349165954,1737001851946,-3840.05124,0.00019589,2]
[349165955,1737001851957,-3840.05124,0.00019589,2]
[349165956,1737001851967,-500.0,0.00019589,3]
[349165957,1737001851976,-500.0,0.00019589,3]
[349165958,1737001851987,-3840.05124,0.00019589,2]
[349165959,1737001851997,-3840.05124,0.00019589,2]
[349165960,1737001852007,-3902.93,0.00019589,3]
[349165961,1737001852016,-1619.25,0.00019589,3]
[349165962,1737001852026,-433.773815,0.00019589,2]
[349165963,1737001852036,-433.773815,0.00019589,2]
[349165964,1737001852046,-4746.35,0.00019589,3]
[349165965,1737001852055,-500.0,0.00019589,3]
[349165966,1737001852065,-433.773815,0.00019589,2]
[349165967,1737001852075,-433.773815,0.00019589,2]
[349165968,1737001852084,-1358.67,0.00019589,3]
[349165969,1737001852094,-500.0,0.00019589,3]
[349165970,1737001852103,-1970.53,0.00019589,3]
[349165971,1737001852113,-666.58,0.00019589,3]
[349165972,1737001852122,-1000.0,0.00019589,7]
[349165973,1737001852131,-500.0,0.00019589,3]
[349165974,1737001852140,-912.58,0.00019589,3]
[349165975,1737001852150,-42697.79,0.00019589,3]
[349165976,1737001852159,-2076.66,0.00019589,3]
[349165977,1737001852167,-500.0,0.00019589,3]
[349165978,1737001852177,-500.0,0.00019589,3]
[349165979,1737001852186,-16668.92,0.00019589,3]
[349165980,1737001852196,-1552.92,0.00019589,3]
[349165981,1737001852205,-500.0,0.00019589,3]
[349165982,1737001852215,-1075.61,0.00019589,3]
[349165983,1737001852224,-500.0,0.00019589,3]
[349165984,1737001852233,-500.0,0.00019589,3]
[349165985,1737001852243,-2143.15,0.00019589,3]
[349165986,1737001852252,-500.0,0.00019589,3]
[349165987,1737001852262,-1602.06,0.00019589,3]
[349165988,1737001852271,-500.0,0.00019589,3]
[349165989,1737001852281,-500.0,0.00019589,3]
[349165990,1737001852290,-2674.39,0.00019589,3]
[349165991,1737001852300,-579.28,0.00019589,3]
[349165992,1737001852310,-151.0,0.00019589,2]
[349165993,1737001852319,-151.0,0.00019589,2]
[349165994,1737001852328,-151.0,0.00019589,2]
[349165995,1737001852338,-1592.26,0.00019589,3]
[349165996,1737001852347,-151.0,0.00019589,2]
[349165997,1737001852356,-2649.35,0.00019589,3]
[349165998,1737001852365,-151.0,0.00019589,2]
[349165999,1737001852373,-289.698007,0.00019589,2]
[349166000,1737001852382,-500.0,0.00019589,3]
[349166001,1737001852390,-601.37112986,0.00019589,3]
[349166002,1737001852399,-500.0,0.00019589,3]
[349166003,1737001852408,-151.0,0.00019589,2]
[349166004,1737001852417,-151.0,0.00019589,2]
[349166005,1737001852431,-201.840173,0.00019589,2]
[349166006,1737001852440,-633.01,0.00019589,3]
[349166007,1737001852449,-3137.47,0.00019589,3]
[349166008,1737001852458,-500.0,0.00019589,3]
[349166009,1737001852466,-458.91410651,0.00019589,3]
[349166010,1737001852476,-533.16,0.00019589,3]
[349166011,1737001852485,-510.45341794,0.00019589,3]
[349166012,1737001852495,-512.48033218,0.00019589,3]
[349166013,1737001852504,-159.14,0.00019589,2]
[349166014,1737001852513,-155.62051,0.00019626,2]
[349166015,1737001852523,-161.88255831,0.00019647,5]
[349166016,1737001852532,-1000.0,0.00019721,2]
[349166017,1737001852541,-500.0,0.00019726,3]
[349166018,1737001852550,-500.0,0.00019726,3]
[349166019,1737001852560,-789.59,0.00019726,3]
[349166020,1737001852569,-668.16,0.00019726,3]
[349166021,1737001852579,-500.0,0.00019726,3]
[349166022,1737001852588,-500.0,0.00019726,3]
[349166023,1737001852597,-559.22,0.00019726,3]
[349166024,1737001852606,-500.0,0.00019726,3]
[349166025,1737001852616,-500.0,0.00019726,3]
[349166026,1737001852625,-500.0,0.00019726,3]
[349166027,1737001852633,-500.0,0.00019726,3]
[349166028,1737001852642,-500.0,0.00019726,3]
[349166029,1737001852651,-500.0,0.00019726,3]
[349166030,1737001852660,-500.0,0.00019726,3]
[349166031,1737001852669,-500.0,0.00019726,3]
[349166032,1737001852678,-500.0,0.00019726,3]
[349166033,1737001852686,-500.0,0.00019726,3]
[349166034,1737001852695,-500.0,0.00019726,3]
[349166035,1737001852703,-500.0,0.00019726,3]
[349166036,1737001852712,-500.0,0.00019726,3]
[349166037,1737001852722,-505.00757357,0.00019726,3]
[349166038,1737001852734,-500.0,0.00019726,3]
[349166039,1737001852742,-500.0,0.00019726,3]
[349166040,1737001852750,-500.0,0.00019726,3]
[349166041,1737001852760,-585.38,0.00019726,3]
[349166042,1737001852769,-500.0,0.00019726,3]
[349166043,1737001852778,-594.49940382,0.00019726,3]
[349166044,1737001852787,-441.21121375,0.00019726,3]
[349166045,1737001852795,-500.0,0.00019726,3]
[349166046,1737001852804,-500.0,0.00019726,3]
[349166047,1737001852812,-500.0,0.00019726,3]
[349166048,1737001852821,-504.29,0.00019726,3]
[349166049,1737001852830,-500.0,0.00019726,3]
[349166050,1737001852840,-934.91,0.00019726,3]
[349166051,1737001852849,-500.0,0.00019726,3]
[349166052,1737001852859,-837.74,0.00019726,3]
[349166053,1737001852869,-772.74,0.00019726,3]
[349166054,1737001852878,-500.0,0.00019726,3]
[349166055,1737001852888,-500.0,0.00019726,3]
[349166056,1737001852897,-720.89,0.00019726,3]
[349166057,1737001852906,-500.0,0.00019726,3]
[349166058,1737001852915,-500.0,0.00019726,3]
[349166059,1737001852925,-500.0,0.00019726,3]
[349166060,1737001852934,-284.99846045,0.00019726,3]
[349166061,1737001852943,-500.0,0.00019726,3]
[349166062,1737001852954,-595.49,0.00019726,3]
[349166063,1737001852963,-500.0,0.00019726,3]
[349166064,1737001852973,-690.6,0.00019726,3]
[349166065,1737001852982,-1118.48,0.00019726,3]
[349166066,1737001852993,-500.0,0.00019726,3]
[349166067,1737001853003,-500.0,0.00019726,3]
[349166068,1737001853012,-551.62768298,0.00019726,3]
[349166069,1737001853023,-1198.05,0.00019726,3]
[349166070,1737001853032,-237.77133944,0.00019726,3]
[349166071,1737001853042,-500.0,0.00019726,3]
[349166072,1737001853052,-919.52,0.00019726,3]
[349166073,1737001853062,-1537.57,0.00019726,3]
[349166074,1737001853072,-500.0,0.00019726,3]
[349166075,1737001853082,-500.0,0.00019726,3]
[349166076,1737001853091,-808.29,0.00019726,3]
[349166077,1737001853100,-500.0,0.00019726,3]
[349166078,1737001853110,-500.0,0.00019726,3]
[349166079,1737001853120,-1435.89,0.00019726,3]
[349166080,1737001853130,-500.0,0.00019726,3]
[349166081,1737001853139,-500.0,0.00019726,3]
[349166082,1737001853148,-500.0,0.00019726,3]
[349166083,1737001853158,-787.89,0.00019726,3]
[349166084,1737001853167,-667.18,0.00019726,3]
[349166085,1737001853177,-632.25,0.00019726,3]
[349166086,1737001853187,-500.0,0.00019726,3]
[349166087,1737001853197,-500.0,0.00019726,3]
[349166088,1737001853207,-500.0,0.00019726,3]
[349166089,1737001853217,-567.06,0.00019726,3]
[349166090,1737001853226,-500.0,0.00019726,3]
[349166091,1737001853235,-766.32,0.00019726,3]
[349166092,1737001853245,-500.0,0.00019726,3]
[349166093,1737001853254,-555.3,0.00019726,3]
[349166094,1737001853264,-562.37,0.00019726,3]
[349166095,1737001853273,-500.0,0.00019726,3]
[349166096,1737001853283,-810.03,0.00019726,3]
[349166097,1737001853392,-984.74,0.00019726,3]
[349166098,1737001853404,-500.0,0.00019726,3]
[349166099,1737001853414,-1676.86,0.00019726,3]
[349166100,1737001853423,-500.0,0.00019726,3]
[349166101,1737001853432,-427.00827104,0.00019726,3]
[349166102,1737001853441,-517.0,0.00019726,3]
[349166103,1737001853450,-500.0,0.00019726,3]
[349166104,1737001853459,-500.0,0.00019726,3]
[349166105,1737001853468,-649.0,0.00019726,3]
[349166106,1737001853478,-466.24163939,0.00019726,3]
[349166107,1737001853991,-395.0,0.00019201,2]
[349166108,1737001854000,-5057.377542,0.00019315,2]
[349166109,1737001854010,-5057.377542,0.00019315,2]
[349166110,1737001854019,-5057.377542,0.00019315,2]
[349166111,1737001854029,-151.0,0.00019315,2]
[349166112,1737001854039,-151.0,0.00019315,2]
[349166113,1737001854047,-151.0,0.00019315,2]
[349166114,1737001854056,-5057.377542,0.00019452,2]
[349166115,1737001854065,-5057.377542,0.00019452,2]
[349166116,1737001854074,-5057.377542,0.00019452,2]
[349166117,1737001854083,-5057.377542,0.00019589,2]
[349166118,1737001854092,-5057.377542,0.00019589,2]
[349166119,1737001854102,-5057.377542,0.00019589,2]
[349166120,1737001854112,-5057.377542,0.00019589,2]
[349166121,1737001854121,-5057.377542,0.00019589,2]
[349166122,1737001854130,-5057.377542,0.00019589,2]
[349166123,1737001854140,-279.07836061,0.00019726,3]
[349166124,1737001854149,-500.0,0.00019726,3]
[349166125,1737001854159,-1421.18,0.00019726,3]
[349166126,1737001854167,-918.6,0.00019726,3]
[349166127,1737001854176,-624.49,0.00019726,3]
[349166128,1737001854186,-500.0,0.00019726,3]
[349166129,1737001854195,-500.0,0.00019726,3]
[349166130,1737001854205,-520.23,0.00019726,3]
[349166131,1737001854215,-500.0,0.00019726,3]
[349166132,1737001854224,-527.17,0.00019726,3]
[349166133,1737001854234,-500.0,0.00019726,3]
[349166134,1737001854242,-500.0,0.00019726,3]
[349166135,1737001854253,-500.0,0.00019726,3]
[349166136,1737001854263,-500.0,0.00019726,3]
[349166137,1737001854272,-500.0,0.00019726,3]
[349166138,1737001854281,-500.0,0.00019726,3]
[349166139,1737001854290,-500.0,0.00019726,3]
[349166140,1737001854299,-500.0,0.00019726,3]
[349166141,1737001854309,-500.0,0.00019726,3]
[349166142,1737001854319,-500.0,0.00019726,3]
[349166143,1737001854328,-500.0,0.00019726,3]
[349166144,1737001854337,-500.0,0.00019726,3]
[349166145,1737001854347,-5786.45,0.00019726,3]
[349166146,1737001854357,-500.0,0.00019726,3]
[349166147,1737001854366,-1438.8,0.00019726,2]
[349166148,1737001854375,-2433.3,0.00019726,3]
[349166149,1737001854385,-500.0,0.00019726,3]
[349166150,1737001854395,-522.76127571,0.00019726,3]
[349166151,1737001854404,-500.0,0.00019726,3]
[349166152,1737001854413,-1252.63,0.00019726,3]
[349166153,1737001854423,-500.0,0.00019726,3]
[349166154,1737001854432,-500.0,0.00019726,3]
[349166155,1737001854441,-500.0,0.00019726,3]
[349166156,1737001854451,-544.82,0.00019726,3]
[349166157,1737001854461,-593.24,0.00019726,3]
[349166158,1737001854471,-35155.74,0.00019726,3]
[349166159,1737001854480,-500.0,0.00019726,3]
[349166160,1737001854490,-500.0,0.00019726,3]
[349166161,1737001854500,-500.0,0.00019726,3]
[349166162,1737001854509,-500.0,0.00019726,3]
[349166163,1737001854518,-1886.71,0.00019726,3]
[349166164,1737001854528,-500.0,0.00019726,3]
[349166165,1737001854537,-11268.26,0.00019726,3]
[349166166,1737001854547,-500.0,0.00019726,3]
[349166167,1737001854557,-635.76,0.00019726,3]
[349166168,1737001854567,-500.0,0.00019726,3]
[349166169,1737001854576,-1022.52,0.00019726,3]
[349166170,1737001854585,-4060.76,0.00019726,3]
[349166171,1737001854595,-1351.46,0.00019726,3]
[349166172,1737001854604,-4785.32,0.00019726,3]
[349166173,1737001854613,-2473.45,0.00019726,3]
[349166174,1737001854622,-715.82,0.00019726,3]
[349166175,1737001854632,-500.0,0.00019726,3]
[349166176,1737001854641,-607.13,0.00019726,3]
[349166177,1737001854651,-500.0,0.00019726,3]
[349166178,1737001854660,-12523.28,0.00019726,3]
[349166179,1737001854669,-1984.62,0.00019726,3]
[349166180,1737001854679,-963.62,0.00019726,3]
[349166181,1737001854688,-151.0,0.00019726,2]
[349166182,1737001854697,-892.15,0.00019726,3]
[349166183,1737001854706,-500.0,0.00019726,3]
[349166184,1737001854715,-500.0,0.00019726,3]
[349166185,1737001854725,-500.0,0.00019726,3]
[349166186,1737001854735,-500.0,0.00019726,3]
[349166187,1737001854744,-647.9,0.00019726,3]
[349166188,1737001854753,-500.0,0.00019726,3]
[349166189,1737001854764,-3506.68,0.00019726,3]
[349166190,1737001854773,-818.98,0.00019726,3]
[349166191,1737001854783,-500.0,0.00019726,3]
[349166192,1737001854792,-500.0,0.00019726,3]
[349166193,1737001854801,-500.0,0.00019726,3]
[349166194,1737001854810,-500.0,0.00019726,3]
[349166195,1737001854820,-500.0,0.00019726,3]
[349166196,1737001854829,-857.27,0.00019726,3]
[349166197,1737001854839,-1327.41,0.00019726,3]
[349166198,1737001854848,-3840.05124,0.00019726,2]
[349166199,1737001854857,-500.0,0.00019726,3]
[349166200,1737001854866,-500.0,0.00019726,3]
[349166201,1737001854875,-3840.05123199,0.00019726,2]
[349166202,1737001854885,-3902.93,0.00019726,3]
[349166203,1737001854894,-1619.25,0.00019726,3]
[349166204,1737001854903,-433.773815,0.00019726,2]
[349166205,1737001854912,-4746.35,0.00019726,3]
[349166206,1737001854921,-439.91707984,0.00019726,3]
[349166207,1737001854930,-433.773808,0.00019726,2]
[349166208,1737001854939,-1358.67,0.00019726,3]
[349166209,1737001854952,-500.0,0.00019726,3]
[349166210,1737001854961,-1970.53,0.00019726,3]
[349166211,1737001854969,-666.58,0.00019726,3]
[349166212,1737001854978,-275.11631026,0.00019726,7]
[349166213,1737001854986,-500.0,0.00019726,3]
[349166214,1737001854995,-42697.79,0.00019726,3]
[349166215,1737001855005,-912.58,0.00019726,3]
[349166216,1737001855014,-2076.66,0.00019726,3]
[349166217,1737001855024,-500.0,0.00019726,3]
[349166218,1737001855032,-500.0,0.00019726,3]
[349166219,1737001855041,-16668.92,0.00019726,3]
[349166220,1737001855050,-1552.92,0.00019726,3]
[349166221,1737001855059,-500.0,0.00019726,3]
[349166222,1737001855180,-1075.61,0.00019726,3]
[349166223,1737001855190,-633.83606751,0.00019726,3]
[349166224,1737001855198,-500.0,0.00019726,3]
[349166225,1737001855207,-2143.15,0.00019726,3]
[349166226,1737001855215,-500.0,0.00019726,3]
[349166227,1737001855224,-1602.06,0.00019726,3]
[349166228,1737001855232,-500.0,0.00019726,3]
[349166229,1737001855242,-500.0,0.00019726,3]
[349166230,1737001855251,-2674.39,0.00019726,3]
[349166231,1737001855261,-579.28,0.00019726,3]
[349166232,1737001855271,-1592.26,0.00019726,3]
[349166233,1737001855281,-151.0,0.00019726,2]
[349166234,1737001855290,-2649.35,0.00019726,3]
[349166235,1737001855300,-500.0,0.00019726,3]
[349166236,1737001855309,-500.0,0.00019726,3]
[349166237,1737001855318,-633.01,0.00019726,3]
[349166238,1737001855327,-3137.47,0.00019726,3]
[349166239,1737001855336,-500.0,0.00019726,3]
[349166240,1737001855346,-533.16,0.00019726,3]
[349166241,1737001855355,-5057.377542,0.00019726,2]
[349166242,1737001855365,-5057.37755062,0.00019726,2]
[349166243,1737001855374,-500.0,0.00019747,2]
[349166244,1737001855383,-500.0,0.00019747,2]
[349166245,1737001855392,-500.0,0.00019747,2]
[349166246,1737001855402,-500.0,0.00019747,2]
[349166247,1737001855411,-500.0,0.00019747,2]
[349166248,1737001855421,-556.0,0.00019747,2]
[349166249,1737001855430,-500.0,0.00019747,2]
[349166250,1737001855439,-673.75911004,0.00019747,2]
[349166251,1737001855448,-155.62051,0.00019763,2]
[349166252,1737001855456,-500.0,0.00019773,2]
[349166253,1737001855465,-500.0,0.00019773,2]
[349166254,1737001855475,-500.4084924,0.00019773,2]
[349166255,1737001855484,-500.0,0.00019773,2]
[349166256,1737001855494,-500.0,0.00019773,2]
[349166257,1737001855503,-500.0,0.00019773,2]
[349166258,1737001855512,-500.0,0.00019773,2]
[349166259,1737001855521,-500.0,0.00019773,2]
[349166260,1737001855531,-500.0,0.00019773,2]
[349166261,1737001855540,-500.559438,0.00019773,2]
[349166262,1737001855550,-500.0,0.00019773,2]
[349166263,1737001855559,-227.8490794,0.00019773,2]
[349166264,1737001855568,-162.71709109,0.00019773,2]
[349166265,1737001855577,-683.069,0.00019782,2]
[349166266,1737001855587,-420.0,0.00019829,2]
[349166267,1737001855595,-500.0,0.00019863,3]
[349166268,1737001855604,-500.0,0.00019863,3]
[349166269,1737001855616,-789.59,0.00019863,3]
[349166270,1737001855625,-668.16,0.00019863,3]
[349166271,1737001855634,-500.0,0.00019863,3]
[349166272,1737001855643,-500.0,0.00019863,3]
[349166273,1737001855652,-559.22,0.00019863,3]
[349166274,1737001855661,-506.94147771,0.00019863,3]
[349166275,1737001855670,-500.0,0.00019863,3]
[349166276,1737001855680,-500.0,0.00019863,3]
[349166277,1737001855691,-500.0,0.00019863,3]
[349166278,1737001855701,-500.0,0.00019863,3]
[349166279,1737001855710,-500.0,0.00019863,3]
[349166280,1737001855720,-500.0,0.00019863,3]
[349166281,1737001855728,-500.0,0.00019863,3]
[349166282,1737001855738,-500.0,0.00019863,3]
[349166283,1737001855747,-500.0,0.00019863,3]
[349166284,1737001855755,-500.0,0.00019863,3]
[349166285,1737001855765,-500.0,0.00019863,3]
[349166286,1737001855773,-500.0,0.00019863,3]
[349166287,1737001855782,-500.0,0.00019863,3]
[349166288,1737001855791,-500.0,0.00019863,3]
[349166289,1737001855800,-500.0,0.00019863,3]
[349166290,1737001855808,-585.38,0.00019863,3]
[349166291,1737001855817,-500.0,0.00019863,3]
[349166292,1737001855826,-500.0,0.00019863,3]
[349166293,1737001855835,-500.0,0.00019863,3]
[349166294,1737001855845,-504.29,0.00019863,3]
[349166295,1737001855854,-500.0,0.00019863,3]